bitfinex-derivatives/quotes_ETHF0:USTF0_20260306
["timestamp","ask_amount","ask_price","bid_price","bid_amount"]
[1772782505193,3.98608578,2083.7,2082.9,2.10455685]
[1772782505491,0.23993,2083.8,2082.9,2.10455685]
[1772782505492,3.98608578,2083.6,2082.9,2.10455685]
[1772782506291,3.98608578,2083.6,2082.5,2.1077917]
[1772782506494,3.98608578,2083.4,2082.5,2.1077917]
[1772782506696,0.02504328,2083.0,2082.1,1.50702384]
[1772782506993,0.0420662,2082.9,2082.1,1.50702384]
[1772782507695,4.02815198,2082.8,2082.1,1.50702384]
[1772782507897,0.03253816,2082.6,2082.0,1.50039845]
[1772782508590,0.03253816,2082.6,2082.0,0.00549129]
[1772782508787,0.0243016,2082.5,2081.8,1.49490716]
[1772782508990,0.02926102,2082.4,2081.7,1.49490716]
[1772782509392,0.02926102,2082.4,2080.9,1.49242745]
[1772782509996,0.03506548,2082.4,2080.9,1.49624179]
[1772782513089,0.03506548,2082.4,2081.3,1.51041593]
[1772782515595,0.00580446,2082.4,2081.3,1.51041593]
[1772782528104,0.00580446,2082.4,2081.3,4.09041593]
[1772782528409,0.00580446,2082.4,2081.4,1.55041914]
[1772782528603,0.00580446,2082.4,2081.5,1.55041914]
[1772782534210,3.99189024,2082.4,2081.5,1.55041914]
[1772782534407,3.36951694,2082.4,2081.5,1.55041914]
[1772782534611,10.03993632,2083.0,2081.5,1.55041914]
[1772782534612,6.05283138,2082.9,2081.5,1.55041914]
[1772782534811,6.35482867,2082.9,2081.6,1.40065236]
[1772782535213,7.63780816,2083.1,2081.6,1.40065236]
[1772782535214,6.34321334,2082.8,2081.6,1.40065236]
[1772782535412,0.29038196,2082.7,2081.6,1.40065236]
[1772782535611,0.29496062,2082.7,2081.6,1.40065236]
[1772782536014,0.28445184,2082.5,2081.6,1.40065236]
[1772782536211,0.28445184,2082.4,2081.6,1.40065236]
[1772782538119,0.28993693,2082.3,2081.6,1.40065236]
[1772782540118,0.28038182,2082.2,2081.6,1.40065236]
[1772782544118,6.05283138,2082.3,2081.6,1.40065236]
[1772782544319,0.2746192,2082.4,2081.6,1.40065236]
[1772782547523,6.05283138,2082.5,2081.6,1.40065236]
[1772782548120,6.26434993,2082.5,2081.6,1.40065236]
[1772782548620,6.05283138,2082.4,2081.3,1.40065236]
[1772782548827,0.21151855,2082.1,2081.3,1.40065236]
[1772782549022,0.21233933,2082.0,2081.3,1.40065236]
[1772782553121,6.2570244,2082.2,2081.3,1.40065236]
[1772782553427,0.20419302,2082.2,2081.3,1.40065236]
[1772782553623,6.26160306,2082.7,2081.3,1.40065236]
[1772782553923,0.19934746,2082.5,2081.3,1.40065236]
[1772782554328,0.19934746,2082.4,2081.3,1.40065236]
[1772782558124,6.05283138,2082.5,2081.3,1.40065236]
[1772782558325,6.23858919,2082.6,2081.3,1.40065236]
[1772782558520,0.18575781,2082.5,2081.3,1.40065236]
[1772782558719,6.23858919,2082.5,2081.3,1.40065236]
[1772782559527,0.17769276,2082.4,2081.3,1.40065236]
[1772782561126,6.05741004,2082.7,2081.5,1.30749707]
[1772782561429,6.2091568,2082.7,2081.5,1.30749707]
[1772782562229,0.14201327,2083.0,2081.7,1.30749707]
[1772782562524,6.1765946,2083.0,2081.7,1.30749707]
[1772782562825,6.03458133,2083.0,2081.7,1.30749707]
[1772782563131,6.172462,2083.1,2081.7,1.30749707]
[1772782563327,6.17832974,2083.1,2081.7,1.30749707]
[1772782563830,0.14374841,2083.1,2081.8,1.30749707]
[1772782565836,0.12494834,2083.0,2081.8,1.30749707]
[1772782566926,0.12938735,2082.9,2081.8,1.30749707]
[1772782567130,0.12938735,2082.8,2081.8,1.30749707]
[1772782569434,6.1532235,2083.0,2081.8,1.30749707]
[1772782569733,0.11864217,2083.0,2081.8,1.30749707]
[1772782576240,0.11864217,2083.0,2082.0,1.30749707]
[1772782577742,0.00586774,2083.1,2082.0,1.30749707]
[1772782579147,0.00586774,2083.1,2082.2,1.30749707]
[1772782580345,0.03814768,2083.1,2082.2,1.30749707]
[1772782582150,0.03814768,2083.1,2082.2,3.88749707]
[1772782582645,0.03814768,2083.1,2082.3,1.30749707]
[1772782582851,0.00586774,2083.1,2082.3,1.30749707]
[1772782590457,0.00586774,2083.1,2082.5,1.25651256]
[1772782590758,0.00586774,2083.1,2082.5,1.26125651]
[1772782605067,6.03458133,2083.4,2083.0,1.56500791]
[1772782605268,6.03458133,2083.7,2083.1,1.25511703]
[1772782605861,6.03458133,2083.8,2083.1,1.25511703]
[1772782606069,0.00432053,2083.8,2083.4,1.56500791]
[1772782606268,6.03458133,2084.2,2083.5,1.25543001]
[1772782606471,6.03458133,2084.3,2083.7,1.25543001]
[1772782606770,6.03458133,2084.4,2083.7,1.25543001]
[1772782607268,6.04066188,2084.4,2083.7,1.25543001]
[1772782607469,0.00608055,2084.4,2083.7,1.25543001]
[1772782607868,0.00608055,2084.4,2083.9,1.25328143]
[1772782610577,0.00608055,2084.4,2082.9,1.25207428]
[1772782616680,0.23987,2084.3,2082.9,1.25207428]
[1772782617382,8.25157904,2084.4,2082.9,1.25207428]
[1772782617383,0.00608055,2084.4,2082.9,1.25207428]
[1772782618278,0.00608055,2084.4,2082.9,3.83207428]
[1772782618482,0.00608055,2084.4,2083.0,1.27676153]
[1772782620884,2.45686771,2084.4,2083.0,1.27676153]
[1772782621080,8.49144904,2084.4,2083.0,1.27676153]
[1772782621478,0.23988,2084.2,2083.0,1.27676153]
[1772782621775,6.27446133,2084.2,2083.0,1.27676153]
[1772782621980,0.23988,2084.2,2083.0,1.27676153]
[1772782622582,6.03458133,2084.1,2083.0,1.27676153]
[1772782622886,0.23991,2084.0,2083.0,1.27676153]
[1772782625388,6.03458133,2083.9,2083.0,1.27676153]
[1772782625785,6.03458133,2083.8,2083.0,1.27676153]
[1772782627391,6.03458133,2083.8,2082.6,1.27413814]
[1772782627591,0.23994,2083.7,2082.6,1.27413814]
[1772782627792,6.03458133,2083.6,2082.6,1.27413814]
[1772782627986,0.23996,2083.5,2082.6,1.27413814]
[1772782628386,6.03458133,2083.7,2082.6,1.27413814]
[1772782628587,6.03458133,2083.7,2082.8,1.27435549]
[1772782628887,1.56456961,2083.6,2082.8,1.27435549]
[1772782629683,6.03458133,2083.8,2082.8,1.27435549]
[1772782629684,7.59915094,2083.8,2082.9,1.27597505]
[1772782629989,7.83906094,2084.0,2083.1,1.27597505]
[1772782632795,7.59915094,2084.0,2083.1,1.27597505]
[1772782634097,1.56456961,2083.8,2083.1,1.27597505]
[1772782634895,6.03458133,2083.9,2083.1,1.27597505]
[1772782635497,6.03458133,2084.0,2083.1,1.27597505]
[1772782635891,7.59915094,2084.0,2083.1,1.27597505]
[1772782636691,6.03458133,2084.0,2083.1,1.27597505]
[1772782636897,6.03458133,2083.9,2083.1,1.27597505]
[1772782639197,6.03458133,2083.9,2082.6,1.27242729]
[1772782639395,6.03458133,2083.7,2082.6,1.27242729]
[1772782640302,6.03458133,2083.6,2082.6,1.27242729]
[1772782640695,6.03458133,2083.5,2082.6,1.27242729]
[1772782642793,10.05794955,2083.9,2082.6,1.27242729]
[1772782642794,6.03458133,2083.8,2082.6,1.27242729]
[1772782642997,6.03458133,2084.1,2082.8,1.28298899]
[1772782643499,6.03458133,2084.1,2082.9,1.27937849]
[1772782647099,6.03458133,2084.0,2082.9,1.27937849]
[1772782649301,6.03458133,2084.1,2082.9,1.27937849]
[1772782649792,6.03458133,2084.0,2082.9,1.27937849]
[1772782655999,7.39779816,2084.1,2082.9,1.27937849]
[1772782656000,6.03458133,2084.1,2082.9,1.27937849]
[1772782657307,6.03458133,2084.1,2083.0,1.26666094]
[1772782658304,6.03458133,2084.2,2083.0,1.26666094]
[1772782658698,6.03458133,2084.3,2083.0,1.26666094]
[1772782658898,6.03458133,2084.3,2083.1,1.26682877]
[1772782659102,6.03458133,2084.2,2083.1,1.26682877]
[1772782660501,6.03458133,2084.3,2083.1,1.26682877]
[1772782663914,6.04066188,2084.4,2083.1,1.26682877]
[1772782664413,0.00608055,2084.4,2083.1,1.26682877]
[1772782665106,4.01856576,2084.3,2083.1,1.26682877]
[1772782665307,4.02464631,2084.4,2083.1,1.26682877]
[1772782666107,0.00608055,2084.4,2083.2,1.27669344]
[1772782666308,0.00608055,2084.4,2083.3,1.27669344]
[1772782668717,4.02464631,2084.4,2083.3,1.27669344]
[1772782669517,0.00608055,2084.4,2083.3,1.27669344]
[1772782669718,4.01944715,2084.4,2083.3,1.27669344]
[1772782672124,0.00608055,2084.4,2083.3,1.27669344]
[1772782675925,4.01944715,2084.4,2083.3,1.27669344]
[1772782676326,4.0133666,2084.3,2083.3,1.27669344]
[1772782676727,4.0133666,2084.1,2083.2,1.25581606]
[1772782677925,4.0133666,2084.2,2083.2,1.25581606]
[1772782678331,4.0133666,2084.1,2083.2,1.25581606]
[1772782678829,4.0133666,2083.8,2082.7,1.2583262]
[1772782679030,4.0133666,2083.6,2082.7,1.2583262]
[1772782679233,4.0133666,2083.5,2082.7,1.2583262]
[1772782679930,4.0133666,2083.4,2082.5,1.28397243]
[1772782681132,4.0133666,2083.5,2082.5,1.28397243]
[1772782683133,4.0133666,2083.6,2082.5,1.28397243]
[1772782685836,4.0133666,2083.5,2082.5,1.28397243]
[1772782687136,4.0133666,2083.6,2082.5,1.28397243]
[1772782689138,4.0133666,2083.7,2082.5,1.28397243]
[1772782689333,4.0133666,2083.6,2082.5,1.28397243]
[1772782690241,4.0133666,2083.7,2082.5,1.28397243]
[1772782690435,4.0133666,2083.6,2082.5,1.28397243]
[1772782691039,3.49991665,2083.7,2082.5,1.28397243]
[1772782691337,6.03458133,2084.3,2082.5,1.28397243]
[1772782692841,6.27446133,2084.2,2082.5,1.28397243]
[1772782693139,6.03458133,2084.0,2082.5,1.28397243]
[1772782693737,0.23992,2083.9,2082.5,1.28397243]
[1772782693937,6.03458133,2083.7,2082.5,1.28397243]
[1772782696140,6.03458133,2083.8,2082.5,1.28397243]
[1772782697946,6.27450133,2083.9,2082.5,1.28397243]
[1772782698145,6.03458133,2083.8,2082.5,1.28397243]
[1772782700652,6.27450133,2083.9,2082.5,1.28397243]
[1772782703254,6.03458133,2083.8,2082.5,1.28397243]
[1772782705155,6.03458133,2083.7,2082.5,1.28397243]
[1772782705355,6.03458133,2083.7,2082.6,1.03688568]
[1772782708257,6.03458133,2083.6,2082.7,1.03638965]
[1772782709457,6.03458133,2083.7,2082.7,1.03638965]
[1772782709657,6.03458133,2083.8,2082.7,1.03638965]
[1772782714159,6.03458133,2083.9,2082.7,1.03638965]
[1772782717257,6.03458133,2083.9,2082.8,1.02930061]
[1772782719262,6.03458133,2083.9,2082.9,1.02972703]
[1772782719562,6.03458133,2084.1,2082.9,1.02972703]
[1772782722456,6.03458133,2084.2,2082.9,1.02972703]
[1772782722657,6.03458133,2084.2,2083.1,1.02963144]
[1772782724659,6.03458133,2084.3,2083.1,1.02963144]
[1772782725358,6.28052188,2084.4,2083.1,1.02963144]
[1772782725966,0.00608055,2084.4,2083.3,1.03130558]
[1772782732471,1.5696256,2084.4,2083.5,1.01737397]
[1772782733572,1.56354505,2084.2,2083.3,1.01895377]
[1772782734572,6.04066188,2084.4,2083.3,1.01895377]
[1772782735273,0.00608055,2084.4,2083.3,1.01895377]
[1772782735471,6.04066188,2084.4,2083.3,1.01895377]
[1772782736478,6.04066188,2084.4,2083.2,2.58]
[1772782736479,6.27445133,2084.3,2083.2,2.58]
[1772782736678,6.03458133,2084.1,2083.2,2.58]
[1772782737481,6.03458133,2084.1,2083.2,3.60317302]
[1772782737681,6.03458133,2084.1,2083.3,1.02317302]
[1772782737877,6.03458133,2084.1,2083.2,3.60317302]
[1772782738077,6.03458133,2084.1,2083.2,2.58]
[1772782738278,6.03458133,2084.0,2083.0,1.02331575]
[1772782739483,6.03458133,2084.1,2083.0,1.02331575]
[1772782739684,6.03458133,2084.0,2083.0,1.02331575]
[1772782740383,6.03458133,2083.9,2083.0,1.02331575]
[1772782740578,6.03458133,2084.0,2083.0,1.02331575]
[1772782741782,6.03458133,2083.9,2083.0,1.02331575]
[1772782746492,6.03458133,2083.8,2082.7,1.04817546]
[1772782746691,6.03458133,2083.7,2082.7,1.04817546]
[1772782747190,6.03458133,2083.4,2082.5,1.05418961]
[1772782748192,6.03458133,2083.3,2082.5,1.05418961]
[1772782748389,6.03458133,2083.4,2082.5,0.00474395]
[1772782749286,6.03458133,2083.4,2081.7,1.08548775]
[1772782749491,6.03458133,2083.3,2081.7,1.08548775]
[1772782750394,6.03458133,2083.3,2081.7,1.08987832]
[1772782751193,4.01123631,2083.2,2081.7,1.08987832]
[1772782752497,4.01123631,2083.1,2081.7,1.08987832]
[1772782752995,4.01123631,2083.1,2081.9,1.07510943]
[1772782753203,4.01123631,2083.2,2081.9,1.07510943]
[1772782756600,1.56555109,2083.1,2082.2,1.07861849]
[1772782757602,4.01123631,2083.2,2082.4,1.08473968]
[1772782757904,1.56555109,2083.3,2082.3,1.56555109]
[1772782757905,1.56555109,2083.3,2082.6,1.08473968]
[1772782758599,1.56555109,2083.3,2081.8,1.0847944]
[1772782758600,0.23999,2083.3,2081.8,1.0847944]
[1772782758800,4.25122631,2083.3,2081.8,1.0847944]
[1772782761105,4.01123631,2083.2,2081.8,1.0847944]
[1772782762399,4.01123631,2083.2,2081.9,1.08825093]
[1772782762802,4.25122631,2083.3,2081.9,1.08825093]
[1772782764109,4.01123631,2083.2,2081.9,1.08825093]
[1772782764708,4.01123631,2083.0,2081.9,1.08825093]
[1772782768609,4.01123631,2082.9,2081.9,1.08825093]
[1772782768810,4.0163365,2082.9,2081.9,1.08825093]
[1772782770316,0.00510019,2082.9,2081.9,1.08825093]
[1772782774511,4.01123631,2083.2,2081.9,1.08825093]
[1772782775217,4.01123631,2083.2,2082.0,1.05455758]
[1772782775409,4.01642742,2083.2,2082.0,1.05455758]
[1772782776017,4.01123631,2083.1,2082.0,1.05455758]
[1772782779614,0.00519111,2083.2,2082.2,1.0552171]
[1772782780822,0.00519111,2083.2,2082.3,1.05527984]
[1772782788923,4.01123631,2083.5,2082.5,1.05082841]
[1772782789121,6.03458133,2083.7,2082.5,1.05082841]
[1772782789122,4.01123631,2083.7,2082.5,1.05082841]
[1772782789725,4.01123631,2083.6,2082.5,1.05082841]
[1772782789925,4.01741497,2083.6,2082.5,1.05082841]
[1772782790124,4.01123631,2083.5,2082.5,1.05082841]
[1772782792529,4.01123631,2083.4,2082.5,1.05082841]
[1772782793724,4.01123631,2083.3,2082.5,1.05082841]
[1772782794128,6.03458133,2083.5,2082.5,1.05082841]
[1772782794129,4.01123631,2083.4,2082.5,1.05082841]
[1772782797036,4.01123631,2083.3,2082.5,1.05082841]
[1772782798433,4.01123631,2083.4,2082.5,1.05082841]
[1772782799233,4.01123631,2083.3,2082.5,1.05082841]
[1772782800531,4.01123631,2083.4,2082.6,1.5648086]
[1772782800734,4.01123631,2083.5,2082.7,1.04312521]
[1772782801236,4.01741497,2083.6,2082.7,1.04312521]
[1772782801630,0.00617866,2083.6,2082.7,1.04312521]
[1772782802035,4.01741497,2083.6,2082.7,1.04312521]
[1772782809639,4.01123631,2083.5,2082.7,1.04312521]
[1772782810034,4.01741497,2083.6,2082.7,1.04312521]
[1772782818244,6.03458133,2084.0,2083.2,1.04102991]
[1772782818449,6.03458133,2084.2,2083.2,1.04102991]
[1772782818850,6.03458133,2084.1,2083.0,1.04102991]
[1772782819045,6.03458133,2084.0,2082.8,3.99269157]
[1772782819251,6.03458133,2083.9,2082.9,1.04063939]
[1772782819847,6.03458133,2083.8,2082.9,1.04063939]
[1772782820150,6.03458133,2083.9,2082.9,1.04063939]
[1772782820350,6.04063539,2084.0,2082.9,1.04063939]
[1772782821148,0.00605406,2084.0,2082.9,1.04063939]
[1772782821549,0.00605406,2084.0,2083.2,1.03754535]
[1772782823251,6.03458133,2084.4,2083.2,1.03754535]
[1772782823452,6.03458133,2084.6,2083.5,1.04331263]
[1772782824053,6.03458133,2084.7,2083.5,1.04331263]
[1772782824455,7.60110828,2084.7,2083.7,1.04335666]
[1772782825254,1.56311214,2084.5,2083.7,1.04335666]
[1772782825653,1.56311214,2084.3,2083.7,1.04335666]
[1772782826455,1.56311214,2084.3,2083.5,1.04206407]
[1772782828459,1.56311214,2084.5,2083.7,0.98956808]
[1772782831563,1.56652695,2084.7,2083.7,0.98956808]
[1772782832057,1.56311214,2084.5,2083.7,0.98956808]
[1772782832259,1.56311214,2084.3,2083.7,0.98956808]
[1772782832965,1.56311214,2084.3,2083.6,0.99281709]
[1772782835364,1.56311214,2084.3,2083.3,1.00232567]
[1772782835966,1.56311214,2084.6,2083.7,1.00237895]
[1772782837964,1.56311214,2084.4,2083.7,1.00237895]
[1772782840170,1.56311214,2084.4,2083.5,1.00622654]
[1772782843372,1.56311214,2084.4,2083.4,1.56311214]
[1772782843373,1.56311214,2084.6,2083.7,1.0077084]
[1772782844673,6.03799614,2084.7,2083.7,1.0077084]
[1772782844873,1.56311214,2084.6,2083.7,1.0077084]
[1772782845770,1.56311214,2084.4,2083.5,1.01012293]
[1772782845975,1.56311214,2084.6,2083.7,1.01012293]
[1772782848970,0.00341481,2084.7,2083.7,1.01012293]
[1772782849277,0.00341481,2084.7,2084.1,1.00974445]
[1772782850277,6.03458133,2085.0,2084.3,1.00978779]
[1772782850478,7.39779816,2085.2,2084.3,1.00978779]
[1772782850479,6.03458133,2085.1,2084.3,1.00978779]
[1772782850677,6.03458133,2085.2,2084.3,1.00978779]
[1772782851373,6.04048313,2085.2,2084.3,1.01473146]
[1772782851578,1.56311214,2085.1,2084.3,1.01473146]
[1772782851774,1.56311214,2084.9,2084.3,0.00494367]
[1772782852180,7.60359527,2085.2,2084.3,1.0144445]
[1772782852375,1.56311214,2085.0,2084.3,1.0144445]
[1772782853879,7.60359527,2085.2,2084.3,1.0144445]
[1772782856080,1.56901394,2085.2,2084.3,1.0144445]
[1772782859583,0.0059018,2085.2,2084.3,1.0144445]
[1772782861388,7.59769347,2086.0,2085.1,1.04214506]
[1772782861584,7.59769347,2086.2,2085.3,1.04214506]
[1772782862179,6.03924706,2086.2,2085.3,1.04214506]
[1772782862387,0.00466573,2086.2,2085.3,1.04214506]
[1772782864282,0.00466573,2086.2,2085.7,1.04217445]
[1772782864487,1.56777787,2086.2,2085.3,1.04217445]
[1772782865887,0.00466573,2086.2,2085.5,1.04044186]
[1772782867687,0.00466573,2086.2,2085.3,1.0371932]
[1772782867688,1.56777787,2086.2,2085.3,1.0371932]
[1772782869999,1.56311214,2086.0,2085.3,1.0371932]
[1772782870289,1.56311214,2085.8,2085.1,1.0372337]
[1772782870793,1.56311214,2085.6,2084.8,1.0372337]
[1772782872490,0.23968,2086.0,2084.8,1.0372337]
[1772782874191,6.27426133,2086.0,2084.8,1.0372337]
[1772782876591,0.23968,2086.0,2084.8,1.0372337]
[1772782877294,6.27426133,2086.0,2084.8,1.0372337]
[1772782878295,4.00264685,2085.8,2084.8,1.0372337]
[1772782879698,6.03458133,2085.9,2084.4,1.01794641]
[1772782879699,4.00264685,2085.4,2084.4,1.01794641]
[1772782880794,4.00264685,2085.5,2084.4,1.01794641]
[1772782881586,4.00264685,2085.6,2084.4,1.01794641]
[1772782881986,4.00264685,2085.7,2084.4,1.01794641]
[1772782882186,4.00264685,2085.6,2084.4,1.01794641]
[1772782888994,4.00264685,2085.6,2084.3,0.00494367]
[1772782888995,4.00264685,2085.8,2084.6,1.00765284]
[1772782889195,4.00264685,2085.7,2084.6,1.00765284]
[1772782889498,4.00264685,2085.8,2084.6,1.00765284]
[1772782891205,4.00264685,2085.9,2084.6,1.00765284]
[1772782891700,4.00264685,2085.8,2084.6,1.00765284]
[1772782893001,4.00264685,2085.7,2084.6,1.00765284]
[1772782893504,4.00264685,2085.6,2084.6,1.00765284]
[1772782895801,4.00264685,2085.5,2084.6,1.00765284]
[1772782895998,4.00264685,2085.7,2084.6,1.00765284]
[1772782897405,4.00264685,2085.7,2084.7,1.00742353]
[1772782898703,4.00264685,2085.7,2084.9,1.00746469]
[1772782898906,7.39779816,2086.0,2084.9,1.00746469]
[1772782898907,4.00264685,2085.9,2084.9,1.00746469]
[1772782900009,4.00264685,2085.8,2084.9,1.00746469]
[1772782902115,4.00264685,2085.9,2084.9,1.00746469]
[1772782905014,4.00264685,2086.0,2084.9,1.00746469]
[1772782906315,4.00264685,2086.1,2085.0,1.00281996]
[1772782906712,4.00264685,2086.0,2085.0,1.00281996]
[1772782906913,4.00264685,2086.1,2085.0,1.00281996]
[1772782909419,4.00264685,2086.1,2085.2,1.00158686]
[1772782913618,4.00264685,2086.1,2085.0,0.9975441]
[1772782913817,4.00264685,2085.9,2085.0,0.9975441]
[1772782914011,4.00264685,2086.0,2085.0,0.9975441]
[1772782914416,4.00264685,2086.1,2085.0,0.9975441]
[1772782914617,4.00264685,2086.0,2085.0,0.9975441]
[1772782915523,4.00264685,2086.0,2085.1,0.99810991]
[1772782916425,4.00264685,2086.1,2085.1,0.99810991]
[1772782918425,4.00264685,2086.1,2085.1,3.57810991]
[1772782918619,4.00264685,2086.1,2085.2,1.01302241]
[1772782920619,4.00731258,2086.2,2085.2,1.01302241]
[1772782921019,0.00466573,2086.2,2085.2,1.01302241]
[1772782921223,0.00466573,2086.2,2085.3,1.02147403]
[1772782926929,0.00466573,2086.2,2085.5,1.01731494]
[1772782932333,4.00264685,2086.4,2085.5,1.01731494]
[1772782932530,4.00264685,2086.8,2085.8,1.02075936]
[1772782932735,1.56052995,2086.3,2085.5,1.02075936]
[1772782933032,4.00264685,2086.1,2085.1,1.02075936]
[1772782933235,4.00264685,2086.2,2085.3,1.02451217]
[1772782933435,0.00551736,2086.2,2085.3,1.0286795]
[1772782933632,0.00551736,2086.2,2085.4,5.01720374]
[1772782933841,4.00264685,2086.8,2085.7,1.02451217]
[1772782934038,4.00264685,2086.9,2085.7,5.01720374]
[1772782934336,4.00264685,2087.0,2085.9,1.02455784]
[1772782934536,4.00264685,2087.1,2086.2,1.02455784]
[1772782934840,4.00620788,2087.1,2086.2,1.02455784]
[1772782935232,0.00356103,2087.1,2086.2,1.02455784]
[1772782935638,4.00620788,2087.1,2086.2,1.02455784]
[1772782936237,0.00356103,2087.1,2086.2,1.02455784]
[1772782936438,4.00620788,2087.1,2086.2,1.02455784]
[1772782936632,0.00356103,2087.1,2086.2,1.02455784]
[1772782948454,0.00356103,2087.1,2086.4,1.14631335]
[1772782951149,0.00356103,2087.1,2086.5,1.55908113]
[1772782951356,0.00356103,2087.1,2086.6,1.14305697]
[1772782953357,0.00356103,2087.1,2086.7,1.15614202]
[1772782954755,0.00356103,2087.1,2086.5,1.15613651]
[1772782959257,3.54239178,2087.3,2086.5,1.15613651]
[1772782959557,3.54239178,2087.3,2086.1,2.58]
[1772782959558,0.82185953,2087.7,2086.8,0.79251923]
[1772782960159,0.82185953,2087.6,2086.8,0.79251923]
[1772782960360,0.82596989,2087.6,2086.8,0.79847167]
[1772782964568,0.00411036,2087.6,2087.0,0.79251923]
[1772782965465,0.82185953,2087.6,2087.0,0.79251923]
[1772782966066,0.82185953,2087.0,2086.2,0.79251923]
[1772782966471,0.82185953,2087.0,2086.4,0.79251923]
[1772782966963,7.39779816,2087.7,2086.4,0.79251923]
[1772782966964,0.82185953,2087.6,2086.4,0.79251923]
[1772782967168,0.82185953,2087.5,2086.5,1.55908113]
[1772782967471,0.82185953,2087.5,2086.6,0.79251923]
[1772782969373,0.82185953,2087.3,2086.6,0.79251923]
[1772782975474,0.00437976,2087.6,2086.6,0.79251923]
[1772782975475,0.82185953,2087.1,2086.6,0.79251923]
[1772782976176,0.82185953,2087.1,2086.5,0.79251923]
[1772782976478,0.82185953,2087.3,2086.6,0.79251923]
[1772782980878,1.55908113,2087.2,2086.4,0.00479742]
[1772782981183,0.77645886,2086.9,2086.4,0.79154061]
[1772782981876,0.77645886,2086.9,2086.4,0.00479742]
[1772782982082,0.77645886,2086.9,2086.3,0.78674319]
[1772782983084,0.77645886,2086.9,2086.3,0.79230471]
[1772782984382,0.77645886,2086.9,2086.3,0.00556152]
[1772782984688,0.77645886,2086.7,2086.1,0.78674319]
[1772782985688,0.77645886,2086.7,2086.1,0.79256908]
[1772782988492,0.77645886,2086.5,2086.0,0.78674319]
[1772782989592,0.77645886,2086.5,2086.1,0.78674319]
[1772782990190,0.77645886,2086.5,2085.7,0.78674319]
[1772782991088,0.77645886,2086.5,2085.7,0.79245452]
[1772782996193,0.77645886,2086.3,2085.7,0.79245452]
[1772782998398,0.77645886,2086.6,2085.8,0.78674319]
[1772782999601,0.77645886,2085.8,2085.2,0.78674319]
[1772782999801,0.77645886,2085.6,2085.2,0.78674319]
[1772783000401,0.77645886,2085.8,2085.2,0.78674319]
[1772783000797,0.78193361,2085.8,2085.2,0.79098009]
[1772783001399,1.55908113,2085.5,2085.2,0.79098009]
[1772783001601,0.77645886,2085.7,2085.2,0.79098009]
[1772783002197,0.78193361,2085.8,2085.2,0.79098009]
[1772783003798,0.77645886,2086.2,2085.6,0.78674319]
[1772783004203,0.77645886,2086.0,2085.4,0.78674319]
[1772783004807,0.78259926,2086.0,2085.4,0.78674319]
[1772783008208,0.77645886,2085.8,2085.4,0.78674319]
[1772783008908,0.77645886,2085.8,2085.3,0.78674319]
[1772783015418,0.7963685,2086.0,2085.3,0.78674319]
[1772783016619,0.7902281,2086.4,2085.4,0.79558623]
[1772783017219,0.7902281,2086.2,2085.4,0.79558623]
[1772783017620,0.7938451,2086.2,2085.4,0.79558623]
[1772783018714,0.003617,2086.2,2085.4,0.79558623]
[1772783018919,0.7902281,2086.4,2085.4,0.79558623]
[1772783020320,0.7955807,2086.4,2085.4,0.79558623]
[1772783023728,0.7955807,2086.4,2085.5,0.79558623]
[1772783029635,0.7955807,2086.4,2085.6,0.79558623]
[1772783033940,0.7902281,2086.2,2085.5,0.79558623]
[1772783034640,0.7902281,2085.9,2085.3,0.79558623]
[1772783035238,0.7902281,2085.9,2085.2,0.0042369]
[1772783035737,0.7902281,2085.8,2085.2,0.0042369]
[1772783036131,0.7902281,2085.6,2084.9,0.79558623]
[1772783036335,0.7902281,2085.6,2084.5,0.79558623]
[1772783036839,0.7902281,2085.3,2084.5,0.79558623]
[1772783037040,0.7902281,2085.3,2084.5,0.79986432]
[1772783037341,0.7902281,2085.3,2084.5,0.00427809]
[1772783040339,0.77972052,2084.7,2084.0,0.78505022]
[1772783040638,0.77972052,2084.7,2083.8,0.78505022]
[1772783040834,0.77972052,2084.7,2083.6,0.78505022]
[1772783041240,0.78309838,2084.7,2083.6,0.78882939]
[1772783043737,0.00337786,2084.7,2083.9,0.78505022]
[1772783044446,0.77972052,2085.0,2084.1,0.78505022]
[1772783045348,0.78525176,2085.0,2084.1,0.78505022]
[1772783045643,0.78525176,2085.0,2084.2,0.78505022]
[1772783045842,0.00553124,2085.0,2084.2,0.78505022]
[1772783048345,0.78525176,2085.0,2084.2,0.78505022]
[1772783048540,0.00553124,2085.0,2084.2,0.78505022]
[1772783053243,0.78525176,2085.0,2084.2,0.78505022]
[1772783059958,0.78525176,2085.0,2084.1,0.78505022]
[1772783063159,0.78525176,2085.0,2083.7,0.78505022]
[1772783063858,0.77972052,2084.7,2083.7,0.78505022]
[1772783064558,0.77972052,2084.6,2083.7,0.78505022]
[1772783065661,0.00553124,2085.0,2083.8,0.15375466]
[1772783065866,0.77972052,2085.3,2084.5,0.15375466]
[1772783066066,0.77972052,2085.3,2084.3,0.15212414]
[1772783066962,0.78482967,2085.3,2084.3,0.15212414]
[1772783067264,0.77972052,2085.1,2083.8,0.20476287]
[1772783068464,0.77972052,2085.1,2084.1,0.20317553]
[1772783070757,0.77972052,2085.1,2084.1,0.44305553]
[1772783070966,0.77972052,2085.1,2084.2,0.20613074]
[1772783073060,0.00510915,2085.3,2084.2,0.20613074]
[1772783073264,0.73917543,2085.2,2084.2,0.20613074]
[1772783073765,0.73917543,2085.2,2084.4,0.22259861]
[1772783076370,0.73917543,2085.2,2084.2,0.22843939]
[1772783081678,0.73917543,2085.2,2084.2,4.205379]
[1772783082076,0.73917543,2085.2,2084.1,4.09124293]
[1772783082876,0.73917543,2085.2,2084.1,0.11430332]
[1772783084474,0.73917543,2085.2,2084.2,0.11284032]
[1772783084977,0.73917543,2085.2,2084.1,3.97693961]
[1772783085177,0.73917543,2085.2,2084.2,0.11197705]
[1772783087584,0.73917543,2085.2,2084.1,4.07952561]
[1772783087779,0.73917543,2085.2,2084.1,0.102586]
[1772783088581,0.73917543,2085.2,2084.2,0.10139792]
[1772783089186,0.74428458,2085.3,2084.5,2.20916315]
[1772783089386,0.74428458,2085.3,2084.3,4.07395377]
[1772783089685,0.74428458,2085.3,2084.4,0.09701416]
[1772783090588,0.73917543,2085.2,2084.4,0.09701416]
[1772783093689,0.73917543,2085.2,2084.3,5.62770937]
[1772783095090,0.73917543,2085.2,2084.4,3.97693961]
[1772783096592,1.56722542,2085.3,2084.3,3.97693961]
[1772783096593,0.73917543,2085.0,2084.3,3.97693961]
[1772783098994,0.73917543,2085.0,2084.3,4.06230461]
[1772783099591,0.00510915,2085.3,2084.3,4.06220585]
[1772783099592,0.73917543,2085.2,2084.3,4.06220585]
[1772783103699,0.73917543,2085.2,2084.4,0.14399238]
[1772783104602,0.72942131,2084.6,2083.9,0.14297634]
[1772783105498,0.72942131,2084.4,2083.7,0.14057366]
[1772783107399,0.72942131,2084.4,2083.6,1.72585252]
[1772783108501,0.72942131,2084.4,2083.6,0.16373625]
[1772783109205,0.72942131,2084.4,2083.6,0.00377917]
[1772783111599,0.72942131,2084.2,2083.6,0.00377917]
[1772783117106,0.72942131,2084.2,2083.7,0.14422517]
[1772783117298,0.72942131,2084.4,2083.9,0.14422517]
[1772783117502,0.72942131,2084.4,2083.8,1.56211627]